bitfinex-derivatives/quotes_ETHF0:USTF0_20251226
["timestamp","ask_amount","ask_price","bid_price","bid_amount"]
[1766759031967,1.21943973,2984.1,2983.3,6.41]
[1766759034873,1.21943973,2984.1,2983.4,6.411]
[1766759035962,1.21943973,2984.1,2982.7,0.16773]
[1766759036468,1.21943973,2984.1,2982.8,9.42043767]
[1766759036669,1.21943973,2984.1,2982.8,4.43043767]
[1766759036864,1.21943973,2984.1,2982.9,6.41]
[1766759037274,1.21943973,2984.1,2983.0,4.39216644]
[1766759038165,1.21943973,2984.1,2983.1,6.41]
[1766759038664,1.21943973,2984.1,2982.7,0.16773]
[1766759038864,1.21943973,2984.1,2982.8,6.411]
[1766759039066,1.21943973,2984.1,2982.8,10.84185377]
[1766759039262,1.21943973,2984.1,2982.9,6.41]
[1766759039569,1.21943973,2984.1,2983.0,4.28841931]
[1766759040066,1.21943973,2984.1,2983.1,6.411]
[1766759040763,1.21943973,2984.1,2983.2,6.411]
[1766759041270,1.21943973,2984.1,2982.8,4.32042126]
[1766759041471,0.8717322,2983.9,2982.0,1.65644441]
[1766759041659,0.8717322,2983.9,2982.5,6.411]
[1766759041860,8.16004179,2984.2,2982.5,10.73598879]
[1766759042065,9.39056388,2984.2,2982.5,10.73598879]
[1766759042959,8.16004179,2984.2,2982.5,10.73598879]
[1766759043163,9.39768161,2984.2,2982.5,10.73598879]
[1766759044366,9.37032735,2984.2,2982.5,10.73598879]
[1766759044970,8.16004179,2984.2,2982.5,10.73598879]
[1766759045170,8.16004179,2984.2,2982.5,4.32498879]
[1766759045370,9.37032735,2984.2,2982.6,6.413]
[1766759045670,9.37032735,2984.2,2982.7,4.4433463]
[1766759046171,8.16004179,2984.2,2982.7,4.4433463]
[1766759046371,9.39712543,2984.2,2982.7,4.4433463]
[1766759046560,9.35626697,2984.2,2982.8,6.413]
[1766759047467,8.16004179,2984.2,2982.8,6.413]
[1766759048569,9.39654755,2984.2,2982.8,6.413]
[1766759048974,8.16004179,2984.2,2982.9,4.38227853]
[1766759049473,8.16004179,2984.2,2983.0,6.411]
[1766759049673,9.3841871,2984.2,2983.0,6.411]
[1766759050765,8.16004179,2984.2,2983.0,6.411]
[1766759051674,9.37303467,2984.2,2983.0,6.411]
[1766759051873,9.35860277,2984.2,2983.0,6.411]
[1766759052574,8.16004179,2984.2,2983.0,6.411]
[1766759052874,9.35860277,2984.2,2983.0,6.411]
[1766759053076,8.16004179,2984.2,2983.0,6.411]
[1766759053368,8.16004179,2984.2,2982.7,0.16773]
[1766759053574,8.16004179,2984.2,2982.8,6.408]
[1766759053575,9.39017653,2984.2,2982.8,6.408]
[1766759053770,8.16004179,2984.2,2982.8,10.76930943]
[1766759054275,9.38016922,2984.2,2982.8,10.76930943]
[1766759054667,8.16004179,2984.2,2982.8,10.76930943]
[1766759055067,9.38016922,2984.2,2982.8,10.76930943]
[1766759056069,8.16004179,2984.2,2982.8,10.76930943]
[1766759056674,9.36902047,2984.2,2982.8,10.76930943]
[1766759057178,8.16004179,2984.2,2982.9,6.407]
[1766759057964,0.87236888,2984.0,2983.0,6.407]
[1766759060278,0.87236888,2984.0,2982.7,0.16773]
[1766759060675,0.87236888,2984.0,2982.8,3.294]
[1766759062579,0.87236888,2984.0,2982.7,0.16773]
[1766759062780,0.87236888,2984.0,2982.8,6.403]
[1766759064881,0.87236888,2984.0,2982.7,0.16773]
[1766759065085,0.87236888,2984.0,2982.8,6.402]
[1766759068100,1.21562135,2984.1,2982.8,7.27436888]
[1766759068300,1.19760056,2984.1,2982.8,7.27436888]
[1766759068893,1.19760056,2984.1,2982.9,6.4]
[1766759069298,8.16004179,2984.2,2982.9,6.4]
[1766759069500,1.22090009,2984.1,2982.9,6.4]
[1766759070002,8.16004179,2984.2,2982.9,6.4]
[1766759070600,1.22090009,2984.1,2982.9,6.4]
[1766759070999,0.00335356,2984.3,2983.2,0.87236888]
[1766759071193,0.87572244,2984.3,2983.3,6.399]
[1766759075195,0.87236888,2984.0,2983.4,6.397]
[1766759075703,0.87572244,2984.3,2983.4,6.397]
[1766759079307,0.87572244,2984.3,2983.5,6.396]
[1766759080007,0.87572244,2984.3,2982.9,0.16772]
[1766759080208,0.87236888,2984.0,2983.0,6.396]
[1766759080797,0.87236888,2984.0,2983.1,6.396]
[1766759082910,0.87572244,2984.3,2983.1,6.396]
[1766759083809,0.87572244,2984.3,2983.2,6.395]
[1766759084698,0.87572244,2984.3,2983.3,6.395]
[1766759085910,0.87572244,2984.3,2982.9,0.16772]
[1766759086107,0.87572244,2984.3,2983.0,3.861]
[1766759086311,0.87572244,2984.3,2982.9,0.16772]
[1766759086312,0.87236888,2984.0,2983.1,6.394]
[1766759086708,0.87236888,2984.0,2982.9,0.16772]
[1766759086904,0.87236888,2984.0,2983.0,6.394]
[1766759087812,0.87236888,2984.0,2983.1,6.394]
[1766759091315,0.87236888,2984.0,2983.2,6.394]
[1766759092316,0.87236888,2984.0,2982.8,1.46563114]
[1766759092616,0.87236888,2984.0,2982.9,4.904]
[1766759092817,0.87236888,2984.0,2982.8,1.46563114]
[1766759093120,0.87236888,2983.7,2982.9,6.168]
[1766759096014,0.87236888,2983.7,2982.8,1.46563114]
[1766759096220,0.87236888,2983.7,2982.9,6.394]
[1766759099520,0.87236888,2983.7,2982.8,1.46563114]
[1766759099819,0.87236888,2983.7,2983.0,6.395]
[1766759100323,0.87236888,2983.3,2982.4,0.00503035]
[1766759100514,0.87236888,2982.5,2982.2,6.396]
[1766759100720,0.87564125,2982.5,2981.3,0.16781]
[1766759100921,0.00327237,2982.5,2981.9,6.395]
[1766759101420,0.00830272,2982.5,2981.9,6.40003035]
[1766759102127,2.72e-06,2982.5,2981.9,6.40003035]
[1766759103322,0.00272021,2982.5,2981.9,6.40003035]
[1766759105622,5.047,2984.2,2981.9,6.40003035]
[1766759105623,0.09912104,2983.7,2982.4,0.87236888]
[1766759105828,0.09912104,2983.7,2982.7,0.87236888]
[1766759106525,0.00503035,2983.5,2982.7,0.87236888]
[1766759107229,0.00503035,2983.5,2982.8,4.697]
[1766759107926,0.00503035,2983.5,2982.9,6.395]
[1766759108520,0.1029418,2983.7,2982.9,6.395]
[1766759109529,0.00335356,2983.6,2982.9,6.395]
[1766759111334,0.1029418,2983.7,2982.9,6.395]
[1766759113526,0.1029418,2983.7,2982.4,0.16774]
[1766759113722,0.1029418,2983.7,2982.5,7.26636888]
[1766759113923,0.1029418,2983.7,2982.6,4.33621877]
[1766759114123,0.1029418,2983.7,2982.5,11.60258765]
[1766759114423,0.1029418,2983.7,2982.5,7.26636888]
[1766759114625,0.1029418,2983.7,2982.6,4.33621877]
[1766759119834,0.1029418,2983.7,2982.7,6.399]
[1766759126235,0.1029418,2983.7,2982.8,6.398]
[1766759128241,0.1029418,2983.7,2982.4,0.16774]
[1766759128441,0.1029418,2983.7,2982.5,5.995]
[1766759128643,0.1029418,2983.7,2982.5,10.41064452]
[1766759128944,0.1029418,2983.7,2982.5,4.41564452]
[1766759129235,0.1029418,2983.7,2982.6,6.398]
[1766759131441,0.1029418,2983.7,2982.4,0.16774]
[1766759131641,0.1029418,2983.7,2982.5,6.397]
[1766759132846,0.1029418,2983.7,2982.6,6.396]
[1766759136145,0.1029418,2983.7,2982.4,0.16774]
[1766759136539,0.1029418,2983.7,2982.5,6.394]
[1766759136738,0.1029418,2983.7,2982.6,6.394]
[1766759136939,0.1029418,2983.7,2982.1,1.45374542]
[1766759137138,0.1029418,2983.7,2982.2,10.76436047]
[1766759138555,0.1029418,2983.7,2982.3,6.399]
[1766759142454,0.00382076,2983.7,2982.4,4.41780022]
[1766759154468,0.00382076,2983.7,2982.5,6.421]
[1766759154871,0.00382076,2983.7,2982.6,4.34008713]
[1766759156471,0.00382076,2983.7,2982.7,6.423]
[1766759156665,0.00382076,2983.7,2982.1,1.46376674]
[1766759156876,0.00382076,2983.7,2982.2,6.423]
[1766759157080,0.00382076,2983.7,2982.3,6.423]
[1766759157772,0.00382076,2983.7,2982.1,1.44337934]
[1766759157974,0.00382076,2983.7,2982.2,6.426]
[1766759160881,0.87232354,2983.4,2982.2,6.434]
[1766759161068,0.00382076,2983.7,2981.9,0.17280035]
[1766759161275,1.11991529,2983.6,2981.9,0.00503035]
[1766759161473,0.87232354,2983.4,2982.0,3.915]
[1766759161781,0.16768,2983.6,2982.1,6.435]
[1766759162078,0.95173425,2983.5,2982.1,6.435]
[1766759162275,0.16768,2983.6,2982.1,6.435]
[1766759162477,0.95133061,2983.5,2982.1,6.435]
[1766759162678,1.82361212,2983.4,2982.0,6.434]
[1766759162979,0.87232354,2983.4,2982.0,6.434]
[1766759163183,0.87232354,2983.4,2981.9,0.00503035]
[1766759163476,0.95090298,2983.3,2981.9,0.00503035]
[1766759163665,0.95085645,2983.2,2981.9,0.00503035]
[1766759163869,0.87232354,2983.0,2981.9,0.00503035]
[1766759164072,0.87232354,2982.6,2981.1,1.44275146]
[1766759164273,0.87232354,2982.6,2981.2,4.064]
[1766759164480,0.87232354,2982.6,2981.3,6.432]
[1766759165181,0.00503035,2982.2,2981.7,0.00503035]
[1766759169072,0.00503035,2982.2,2981.3,0.00251868]
[1766759170077,0.00503035,2982.2,2981.5,0.00503035]
[1766759171278,3.035e-05,2982.2,2981.5,0.00503035]
[1766759171781,0.16769,2983.4,2981.5,0.00503035]
[1766759171981,40.9677,2983.3,2981.5,0.00503035]
[1766759172176,40.9677,2983.3,2981.5,2.04103035]
[1766759172587,0.00503035,2982.7,2981.5,2.04103035]
[1766759172884,0.00503035,2982.7,2981.5,6.42903035]
[1766759181599,0.00503035,2982.7,2981.5,0.00503035]
[1766759181790,0.00503035,2982.7,2981.5,6.42303035]
[1766759182291,0.00503035,2982.7,2981.7,0.8730255]
[1766759182594,3.035e-05,2982.7,2982.0,0.8730255]
[1766759182993,3.035e-05,2982.7,2981.7,0.8730255]
[1766759183592,3.035e-05,2982.7,2981.7,7.2890255]
[1766759184893,3.035e-05,2982.7,2982.0,0.8730255]
[1766759185100,0.8730255,2983.3,2982.0,0.8730255]
[1766759185392,0.8730255,2983.3,2981.5,1.63905223]
[1766759185597,0.8730255,2983.3,2981.6,7.2890255]
[1766759185800,0.8730255,2983.3,2981.8,4.34938036]
[1766759185998,0.8730255,2983.3,2981.6,11.63840586]
[1766759186188,0.8730255,2983.3,2981.6,7.2890255]
[1766759186387,0.8730255,2983.3,2981.7,4.42185144]
[1766759186593,0.8730255,2983.3,2981.9,0.8730255]
[1766759187998,0.8730255,2983.3,2982.0,6.416]
[1766759193604,0.8730255,2983.3,2981.9,0.8730255]
[1766759193806,0.8730255,2983.3,2982.0,6.411]
[1766759195007,0.8730255,2983.3,2981.9,6.41]
[1766759198413,0.8730255,2983.3,2981.6,0.8730255]
[1766759198712,0.8730255,2983.3,2981.7,8.45780427]
[1766759200813,0.8730255,2983.3,2981.9,0.8730255]
[1766759201014,0.8730255,2983.3,2981.8,0.8730255]
[1766759204209,5.34969,2983.4,2982.1,0.8730255]
[1766759205006,0.16769,2983.4,2982.1,0.8730255]
[1766759209418,0.16769,2983.4,2982.0,6.398]
[1766759210117,0.16769,2983.4,2981.8,0.8730255]
[1766759210320,0.16769,2983.4,2981.9,6.397]
[1766759210519,0.8730255,2983.2,2981.8,0.8730255]
[1766759211517,0.8730255,2982.9,2981.5,2.34428773]
[1766759211718,0.8730255,2982.9,2981.5,1.47126223]
[1766759211925,0.8730255,2982.9,2981.5,7.86726223]
[1766759212319,0.8730255,2982.9,2981.5,1.47126223]
[1766759212523,0.8730255,2982.9,2981.5,7.58726223]
[1766759212925,0.8730255,2982.9,2981.5,1.47126223]
[1766759213123,0.8730255,2982.9,2981.5,7.58626223]
[1766759213324,0.8730255,2982.9,2981.5,1.47126223]
[1766759213825,0.8730255,2982.9,2981.5,7.58526223]
[1766759216018,0.8730255,2982.9,2981.5,1.47126223]
[1766759216319,0.8730255,2983.1,2981.5,8.73728773]
[1766759219334,0.8730255,2983.1,2981.6,4.2924862]
[1766759220135,0.8730255,2983.1,2981.7,6.392]
[1766759221437,0.8730255,2982.8,2981.7,6.392]
[1766759222237,0.8730255,2983.1,2981.5,1.47126223]
[1766759222537,0.8730255,2983.1,2981.6,10.45987427]
[1766759223639,0.1677,2983.3,2981.6,10.45987427]
[1766759223939,0.8730255,2983.1,2981.6,10.45987427]
[1766759231346,0.8730255,2983.4,2981.7,0.8730255]
[1766759231546,0.95547238,2983.3,2981.7,0.8730255]
[1766759231738,0.8730255,2983.4,2981.7,0.8730255]
[1766759231938,0.95544051,2983.3,2981.7,0.8730255]
[1766759232138,0.8730255,2983.4,2981.7,0.8730255]
[1766759232346,0.95546098,2983.3,2981.7,0.8730255]
[1766759232544,0.8730255,2983.4,2981.7,0.8730255]
[1766759232743,0.95545242,2983.3,2981.7,0.8730255]
[1766759232940,0.8730255,2983.4,2981.7,0.8730255]
[1766759233144,0.95545224,2983.3,2981.7,0.8730255]
[1766759233442,0.8730255,2983.4,2981.7,0.8730255]
[1766759233645,0.95545115,2983.3,2981.7,0.8730255]
[1766759233946,0.8730255,2983.4,2981.7,0.8730255]
[1766759234141,0.8730255,2983.1,2981.6,7.0998155]
[1766759234541,0.8730255,2983.1,2981.7,6.397]
[1766759235344,0.8730255,2982.8,2981.8,6.397]
[1766759236348,0.8730255,2982.8,2981.6,0.16779]
[1766759236547,0.8730255,2982.8,2981.7,6.396]
[1766759237043,0.8730255,2983.1,2981.7,6.396]
[1766759239050,0.8730255,2983.1,2981.6,1.0408155]
[1766759239348,0.8730255,2983.1,2981.7,5.915]
[1766759239550,0.8730255,2982.8,2981.7,5.915]
[1766759239951,0.87300703,2983.3,2981.7,5.915]
[1766759240352,0.95577497,2983.2,2981.7,5.915]
[1766759240647,0.87300703,2983.3,2981.7,6.394]
[1766759241352,0.95463993,2983.2,2981.7,6.393]
[1766759241652,0.87300703,2983.3,2981.7,6.393]
[1766759241852,0.95464086,2983.2,2981.6,0.16779]
[1766759242053,0.87300703,2983.3,2981.7,5.046]
[1766759242245,0.95464086,2983.2,2981.7,5.046]
[1766759242546,0.87300703,2983.3,2981.7,5.046]
[1766759242750,0.95464433,2983.2,2981.7,5.046]
[1766759242951,0.87300703,2983.3,2981.6,0.16779]
[1766759243154,0.95464379,2983.2,2981.6,0.16779]
[1766759243351,0.87300703,2983.3,2981.6,4.23279]
[1766759243551,0.95464693,2983.2,2981.6,4.23279]
[1766759243742,0.87300703,2983.3,2981.6,4.23279]
[1766759243949,0.9546461,2983.2,2981.6,4.23279]
[1766759244149,0.87300703,2983.3,2981.6,4.23279]
[1766759244348,0.95465236,2983.2,2981.6,4.23279]
[1766759244553,0.87300703,2983.3,2981.6,4.23279]
[1766759244754,0.95464936,2983.2,2981.6,4.23279]
[1766759244955,0.87300703,2983.3,2981.6,4.23279]
[1766759245150,0.95464946,2983.2,2981.6,4.23279]
[1766759245350,0.87300703,2983.3,2981.6,0.16779]
[1766759245547,0.95465109,2983.2,2981.6,0.16779]
[1766759245752,0.87300703,2983.3,2981.6,0.16779]
[1766759245948,0.95465109,2983.2,2981.6,0.16779]
[1766759246152,0.87300703,2983.3,2981.6,0.16779]
[1766759246356,0.95465711,2983.2,2981.6,0.16779]
[1766759246556,0.87300703,2983.3,2981.6,0.16779]
[1766759246858,0.87300703,2982.9,2981.6,0.16779]
[1766759247251,0.87300703,2982.9,2981.5,0.00503035]
[1766759247451,0.1677,2983.3,2981.5,0.00503035]
[1766759247759,0.87300703,2983.0,2981.5,0.00503035]
[1766759250463,0.1677,2983.2,2981.5,0.00503035]
[1766759250760,0.9544614,2983.1,2981.5,0.00503035]
[1766759250964,0.87300703,2983.0,2981.5,0.00503035]
[1766759251354,0.1677,2983.2,2981.5,0.00503035]
[1766759251554,0.9544355,2983.1,2981.5,0.00503035]
[1766759251763,0.1677,2983.2,2981.5,0.00503035]
[1766759254668,5.23482076,2983.7,2981.5,0.00503035]
[1766759254669,0.87300703,2982.5,2981.5,0.00503035]
[1766759258366,0.87300703,2982.7,2981.5,0.00503035]
[1766759266077,0.16772,2982.8,2981.5,0.00503035]
[1766759280385,0.00503035,2982.4,2981.3,0.00251868]
[1766759281374,0.00503035,2982.4,2981.6,0.00503035]
[1766759285591,0.87300703,2982.0,2980.5,11.29917046]
[1766759286084,0.87300703,2982.0,2980.6,4.37948737]
[1766759286477,0.87300703,2982.0,2980.5,4.27386491]
[1766759286682,0.87300703,2982.0,2981.0,0.00503035]
[1766759295797,0.87300703,2982.0,2980.5,0.00261769]
[1766759296693,0.87300703,2982.0,2981.0,0.00503035]
[1766759296894,0.87300703,2982.0,2980.5,0.00261769]
[1766759297891,0.87300703,2982.0,2981.0,3.035e-05]
[1766759298196,0.87300703,2982.0,2980.5,0.00261769]
[1766759298997,0.87300703,2982.0,2981.0,0.00503035]
[1766759299196,0.87300703,2982.0,2980.5,0.00261769]
[1766759299697,0.16776,2982.1,2980.6,4.36729561]
[1766759299995,0.16776,2982.1,2980.5,0.00261769]
[1766759300186,0.16776,2982.1,2981.0,0.00335356]
[1766759300790,0.87300703,2981.8,2980.5,0.00261769]
[1766759301392,0.16776,2982.1,2980.5,0.00261769]
[1766759301593,0.87300703,2981.8,2980.5,0.00261769]
[1766759301786,1.04076703,2982.1,2980.5,0.00261769]
[1766759301990,0.87362762,2981.6,2980.5,0.00261769]
[1766759302188,0.00273286,2981.6,2980.5,0.00261769]
[1766759305392,0.87362762,2981.4,2980.5,0.00261769]
[1766759314709,0.87362762,2981.1,2980.5,0.00261769]
[1766759315510,0.87362762,2980.8,2979.8,0.16789]
[1766759315703,0.87362762,2979.9,2978.3,0.16797]
[1766759315899,0.87362762,2980.0,2978.6,0.87362762]
[1766759316210,0.87362762,2980.5,2978.9,0.87362762]
[1766759316508,0.87362762,2980.5,2978.9,0.87788074]
[1766759316710,0.87362762,2980.5,2979.0,4.31610041]
[1766759317007,0.00503035,2980.6,2978.9,0.87788074]
[1766759317205,0.87362762,2980.4,2979.0,4.31610041]
[1766759317512,0.87362762,2980.1,2979.0,4.31610041]
[1766759318113,0.00503035,2980.6,2978.9,0.00425312]
[1766759318318,0.87362762,2980.2,2978.9,0.00425312]
[1766759321220,0.00503035,2980.6,2979.0,4.40085929]
[1766759321418,0.87362762,2980.3,2979.0,4.40085929]
[1766759324533,0.87362762,2980.3,2978.9,0.00425312]
[1766759325032,0.87362762,2980.0,2978.9,0.00425312]
[1766759325529,0.87362762,2979.7,2978.9,0.00425312]
[1766759325731,0.87362762,2979.4,2978.9,0.00425312]
[1766759325932,0.0038343,2979.4,2978.2,1.44967638]
[1766759326232,0.0038343,2979.4,2978.6,4.44954135]
[1766759326432,0.16784,2980.8,2978.6,5.32316897]
[1766759326634,0.87362762,2980.2,2978.6,0.87362762]
[1766759326834,0.87362762,2980.2,2978.7,4.44658789]
[1766759327236,0.87865797,2979.7,2978.5,0.005]
[1766759327435,0.88114901,2979.7,2978.7,0.16795]
[1766759327923,0.00752139,2979.7,2978.7,0.16795]
[1766759332338,0.00752139,2979.7,2978.7,6.47695]
[1766759333541,0.00752139,2979.7,2978.7,0.16795]
[1766759338334,0.88114901,2979.7,2978.7,0.16795]
[1766759339237,0.00752139,2979.7,2978.7,0.16795]
[1766759339435,0.87362762,2979.6,2978.7,0.16795]
[1766759340530,0.87362762,2979.3,2978.5,0.00793713]
[1766759341242,0.87362762,2979.2,2978.5,0.00793713]
[1766759345448,0.87362762,2979.0,2978.1,0.16799]
[1766759346438,0.87362762,2979.0,2978.1,0.17068187]
[1766759347048,0.87362762,2979.0,2978.1,0.00269187]
[1766759347748,0.87362762,2979.2,2978.1,0.00269187]
[1766759348052,0.00752139,2979.7,2978.2,4.3866074]
[1766759348353,0.87362762,2979.5,2978.2,4.3866074]
[1766759350552,0.87362762,2979.5,2977.3,1.44551719]
[1766759350553,0.00752139,2979.7,2976.4,4.2034336]
[1766759350752,0.00752139,2979.7,2974.2,12.04547262]
[1766759350753,0.87362762,2977.9,2976.9,0.16806]
[1766759350943,3.035e-05,2977.7,2976.9,0.16806]
[1766759351144,0.87362762,2978.3,2977.1,0.00503035]
[1766759351546,0.87362762,2978.3,2977.1,0.00769917]
[1766759352046,5.13062762,2979.0,2977.1,0.00769917]
[1766759352047,0.87865797,2978.0,2977.1,0.00769917]
[1766759352256,0.87362762,2977.7,2977.1,0.00769917]
[1766759353256,0.00503035,2978.0,2977.1,0.00769917]
[1766759353456,0.87362762,2977.9,2977.1,0.00769917]
[1766759355852,0.00503035,2978.0,2977.1,0.00769917]
[1766759356163,0.87362762,2977.8,2977.1,0.00769917]
[1766759359357,0.87362762,2977.5,2976.5,0.16808]
[1766759359556,0.87362762,2977.8,2976.5,0.16808]
[1766759359762,0.87362762,2977.8,2976.6,4.3252828]
[1766759360466,0.87604993,2977.8,2976.6,4.32866457]
[1766759360869,0.87362762,2977.5,2976.6,4.32866457]
[1766759361167,0.00242231,2977.8,2976.6,4.32866457]
[1766759361468,0.87362762,2977.3,2976.6,0.00338177]
[1766759361959,0.87612354,2977.7,2976.6,0.00338177]
[1766759362663,0.87612354,2977.7,2975.8,1.63196601]
[1766759363064,0.87612354,2977.7,2976.0,4.31857066]
[1766759363267,0.87612354,2977.7,2975.9,4.75331696]
[1766759363467,0.00242231,2977.8,2975.9,0.4347463]
[1766759363656,0.00242231,2977.8,2976.1,0.1681]
[1766759364068,0.00242231,2977.8,2976.2,4.33336353]
[1766759365871,0.87612354,2978.8,2976.5,0.87612354]
[1766759366074,0.87612354,2978.7,2976.5,0.87612354]
[1766759366366,0.87612354,2978.7,2976.6,10.62149964]
[1766759366762,0.00503897,2977.9,2977.4,0.00503897]
[1766759369379,0.00246212,2978.7,2977.4,0.00503897]
[1766759370382,0.00503897,2978.3,2977.4,0.00503897]
[1766759371679,0.00503897,2978.3,2976.9,0.16805]
[1766759372582,0.00503897,2978.3,2977.3,0.00503897]
[1766759382393,0.00503897,2978.3,2977.4,4.26656926]
[1766759386899,0.00246212,2978.7,2977.4,4.43459926]
[1766759387897,0.00503897,2978.3,2977.4,4.43459926]
[1766759391798,0.00503897,2978.3,2977.4,0.16803]
[1766759392703,0.00503897,2978.3,2977.3,0.00503897]
[1766759396897,0.00503897,2978.3,2976.9,0.16806]
[1766759397104,0.87544473,2978.0,2976.9,0.16806]
[1766759397306,0.87544473,2978.0,2977.0,4.29175528]
[1766759397801,0.87544473,2978.0,2977.2,0.00503897]
[1766759399799,0.00503897,2978.3,2977.2,0.00503897]
[1766759400401,0.00246212,2978.7,2977.3,4.31516052]
[1766759400615,0.10338357,2978.9,2977.3,4.31516052]
[1766759400899,0.10338357,2978.9,2977.9,0.168]
[1766759401103,0.87544473,2978.2,2977.3,4.31516052]
[1766759401297,0.87544473,2977.8,2976.7,0.16807]
[1766759401500,0.87544473,2977.4,2976.2,0.16809]
[1766759401701,0.87843816,2977.8,2976.2,0.16809]
[1766759401900,0.00299343,2977.8,2976.5,4.32694412]
[1766759402098,0.87544473,2977.1,2976.2,0.16809]
[1766759402405,0.87544473,2976.6,2974.9,0.16817]
[1766759402608,0.87544473,2975.9,2974.7,0.26893092]
[1766759402806,0.87544473,2975.9,2974.3,0.1682]
[1766759403303,0.87544473,2977.5,2975.5,0.16813]
[1766759403502,0.87544473,2977.2,2975.5,0.16813]
[1766759403707,0.87544473,2976.7,2974.6,4.455]
[1766759403903,0.00503897,2976.8,2974.3,0.00323121]
[1766759404203,0.00503897,2976.8,2974.4,0.1682]
[1766759404400,0.00503897,2976.8,2975.1,0.16816]
[1766759405311,0.00503897,2976.8,2975.4,0.16814]
[1766759405508,0.00503897,2976.8,2975.5,2.737]
[1766759405704,0.00503897,2976.8,2975.5,7.19492507]
[1766759406105,1.055,2978.6,2975.7,0.16812]
[1766759406401,40.8,2978.5,2975.8,4.45792507]
[1766759406602,40.96797,2978.5,2975.8,4.45792507]
[1766759406908,1.055,2978.6,2976.2,0.16809]
[1766759407105,1.055,2978.6,2976.5,0.00503897]
[1766759407304,1.055,2978.6,2976.5,0.00843836]
[1766759407510,41.855,2978.6,2976.5,0.00843836]
[1766759407705,0.10338357,2978.9,2976.6,4.35146829]
[1766759408006,3.897e-05,2977.5,2976.6,10.60646829]
[1766759408509,3.897e-05,2977.5,2976.6,4.35146829]
[1766759408709,40.8,2978.8,2976.7,6.255]
[1766759409108,40.8,2978.8,2976.8,4.28246476]
[1766759409509,0.10338357,2978.9,2976.8,4.28246476]
[1766759409811,0.00503897,2977.6,2976.8,4.28246476]
[1766759410013,0.00503897,2977.6,2976.9,6.256]
[1766759410511,0.10338357,2978.9,2977.0,10.68737835]
[1766759410814,0.10338357,2978.9,2977.0,6.257]
[1766759411211,0.10338357,2978.9,2977.1,10.7063057]
[1766759411512,0.00503897,2978.3,2977.1,0.16804]
[1766759411712,0.00503897,2978.3,2977.2,6.258]
[1766759412114,0.00753534,2978.3,2977.2,6.258]
[1766759412710,0.00753534,2978.3,2977.3,4.45015223]
[1766759413914,0.00753534,2978.3,2977.4,6.258]
[1766759414103,0.00753534,2978.3,2977.4,6.42602]
[1766759414303,0.10338357,2978.9,2977.5,4.45635984]
[1766759414715,0.10338357,2978.9,2977.5,4.62437984]
[1766759415309,0.00503897,2978.5,2977.5,4.62437984]
[1766759415510,0.00503897,2978.5,2977.6,5.838]
[1766759415712,1.20026475,2980.3,2977.5,4.45635984]
[1766759415911,0.16786,2980.4,2978.2,0.16798]
[1766759416219,0.16788,2980.0,2977.8,1.892]
[1766759416919,0.00330884,2979.2,2978.6,0.00503897]
[1766759417114,0.00330884,2979.2,2978.6,0.00823963]
[1766759422223,0.00330884,2979.2,2977.8,0.168]
[1766759422423,0.00330884,2979.2,2977.9,1.411]
[1766759422617,0.00330884,2979.2,2977.9,5.85858601]
[1766759422915,0.00287555,2980.0,2978.1,0.16799]
[1766759423119,0.00287555,2980.0,2978.2,6.25]
[1766759423914,0.00237877,2979.4,2978.8,0.00503897]
[1766759424113,0.00287555,2980.0,2978.8,0.00503897]
[1766759425720,0.00287555,2980.0,2978.9,4.45968997]
[1766759425910,0.00287555,2980.0,2978.8,0.00503897]
[1766759430222,1.26030716,2979.6,2978.1,0.00400088]
[1766759430814,1.26030716,2979.1,2977.0,0.16805]
[1766759431017,1.26030716,2979.6,2977.1,5.118]
[1766759431217,0.005,2979.7,2978.1,0.00503897]
[1766759431620,0.1729,2979.7,2978.1,0.00503897]
[1766759431926,1.42820716,2979.6,2978.1,0.00851094]
[1766759432521,0.16792,2979.4,2977.4,0.16802]
[1766759433525,0.16792,2979.4,2978.1,0.00503897]
[1766759433725,0.16792,2979.4,2977.4,0.1712059]
[1766759434222,0.16792,2979.3,2977.4,0.1712059]
[1766759434423,0.16797,2978.4,2975.9,1.61753386]
[1766759434726,0.00503897,2977.4,2975.0,1.33989546]
[1766759434931,0.00503897,2977.4,2975.1,1.734]
[1766759435131,0.00503897,2977.4,2975.0,1.52653946]
[1766759435532,0.00503897,2977.4,2976.3,4.32428219]
[1766759435533,0.00842703,2977.4,2976.3,4.32428219]
[1766759435726,0.00842703,2977.4,2976.6,0.00503897]
[1766759435922,0.00842703,2977.4,2976.2,4.32428219]
[1766759436126,0.00842703,2977.4,2972.0,5.568]
[1766759436335,0.00842703,2977.4,2975.5,6.237]
[1766759436539,0.00842703,2977.4,2975.7,4.3674247]
[1766759436831,0.00842703,2977.4,2975.5,10.7725547]
[1766759436832,0.00842703,2977.4,2975.1,6.237]
[1766759437025,0.00842703,2977.4,2976.0,0.00503897]
[1766759438029,1.26030716,2977.1,2975.1,0.16816]
[1766759438430,1.26030716,2977.1,2975.4,4.30804756]
[1766759438731,1.26030716,2977.1,2975.3,4.30804756]
[1766759439127,1.26030716,2977.1,2975.0,0.00286592]
[1766759439522,1.26030716,2976.6,2975.1,4.28388444]
[1766759439728,1.26030716,2976.6,2975.0,0.00286592]
[1766759440326,40.8,2976.5,2975.0,0.00286592]
[1766759441128,40.96808,2976.5,2975.0,0.00286592]
[1766759441325,1.26030716,2975.6,2974.0,0.01]
[1766759441530,0.00503897,2975.1,2973.5,0.22722098]
[1766759441731,1.26030716,2974.1,2972.0,0.26911715]
[1766759441931,3.897e-05,2973.3,2972.2,0.16832]
[1766759442138,1.26030716,2974.1,2972.8,4.38897165]
[1766759442335,1.26465611,2974.1,2972.0,4.38397165]
[1766759442638,1.26465611,2974.1,2972.3,4.38397165]
[1766759442934,40.8,2974.0,2972.3,4.38397165]
[1766759443132,0.00434895,2974.1,2972.4,0.16831]
[1766759443333,0.00434895,2974.1,2972.4,0.0034358]
[1766759443538,0.00434895,2974.1,2972.5,4.4212613]
[1766759443729,1.26465611,2974.1,2972.5,4.4212613]
[1766759443930,1.26465611,2974.1,2972.4,0.0034358]
[1766759444130,1.26030716,2973.9,2972.4,0.0034358]
[1766759444333,0.00503897,2973.4,2972.9,0.00503897]
[1766759444534,1.26534613,2973.4,2971.5,5.9551046]
[1766759444729,1.26030716,2972.7,2971.5,5.9551046]
[1766759444935,1.26030716,2972.2,2970.2,0.16843]
[1766759445128,3.74130716,2972.2,2969.2,0.032]
[1766759445335,3.74130716,2972.2,2969.2,0.30681221]